Cogmind - Beta 13 X1 @@@ ROGUE MODE // 2023.08.15 @ 15:07:20 Player: VR-DUX Result: Self-destructed Performance ------------- Evolutions (4) 2000 Regions Visited (9) 1800 Robots Destroyed (89) 445 Value Destroyed (2065) 2065 Prototype IDs (25) 500 Alien Tech Used (0) 0 Bonus (414) 414 TOTAL SCORE: 7224 Bonus ------- High Alert Combat Kills 114 Met Data Miner 300 Cogmind --------- Core Integrity 844/850 Matter 231/300 Energy 193/220 System Corruption 0% Temperature Cool (0) Movement Flying (31) Location -6/Factory Parts ------- > --- POWER (2) -------- Micro Nuclear Core Makeshift Power Source > --- PROPULSION (7) --- Xenon Bombardment Thruster Xenon Bombardment Thruster Xenon Bombardment Thruster Flightbrick > --- UTILITY (4+1) ---- Medium Storage Unit Improved Signal Interpreter Targeting Computer (+) Stasis Canceller Makeshift ECM Suite > --- WEAPON (2) ------- Improved Grenade Launcher Power Maul > --- INVENTORY (10) --- Light Angular Momentum Engine Xenon Bombardment Thruster Advanced Weight Redist. System Enhanced Optical Array 0b10 Decoder Chip [Looter] Reaction Control System Molecular Deconstructor Peak State ------------ > --- POWER ------------ Micro Nuclear Core Micro Nuclear Core > --- PROPULSION ------- Xenon Bombardment Thruster Xenon Bombardment Thruster Xenon Bombardment Thruster Flightbrick > --- UTILITY ---------- Improved Cooling System Medium Storage Unit Structural Scanner Sensor Array Improved Signal Interpreter Targeting Computer > --- WEAPON ----------- Molecular Deconstructor > --- INVENTORY -------- Makeshift Power Source Xenon Bombardment Thruster Advanced Weight Redist. System 0b10 Decoder Chip [Looter] Makeshift ECM Suite Reaction Control System Improved Grenade Launcher Katana [Rating: 87] Favorites ----------- Power Ion Engine Engine Ion Engine Power Core Micro Nuclear Core Propulsion Light Treads Treads Light Treads Leg Aluminum Leg Hover Unit Gravmag System Flight Unit Xenon Bombardment Thruster Utility Structural Scanner Device Structural Scanner Storage Large Storage Unit Processor Targeting Computer Protection Improved Propulsion Shielding Weapon Grenade Launcher Energy Gun Beam Rifle Energy Cannon Ion Cannon Ballistic Gun Light Assault Rifle Ballistic Cannon Light Cannon Launcher Grenade Launcher Special Weapon Molecular Deconstructor Impact Weapon Maul Slashing Weapon Katana Build | -11 -10 -10 -8 -7 -7 -7 -7 -6 -6 ------- Run | Jun Mat Sub Mat Fac Low Low Dat Pro Fac Slots Evolved 8 | . . . 4 2 . . . . 2 Power 1 | . . . . . . . . . 1 Propulsion 5 | . . . 2 2 . . . . 1 Utility 2 | . . . 2 . . . . . . Weapon . | . . . . . . . . . . Parts Attached 128 | 1 33 10 45 29 . . . 1 9 Power 13 | . 5 . 3 3 . . . . 2 Engine 9 | . 5 . 2 1 . . . . 1 Core 4 | . . . 1 2 . . . . 1 Reactor . | . . . . . . . . . . Propulsion 29 | . 11 . 11 6 . . . . 1 Treads 23 | . 11 . 11 1 . . . . . Leg . | . . . . . . . . . . Wheel . | . . . . . . . . . . Hover 1 | . . . . 1 . . . . . Flight 5 | . . . . 4 . . . . 1 Utility 30 | 1 4 . 10 12 . . . . 3 Device 20 | 1 1 . 8 7 . . . . 3 Storage 3 | . 1 . . 2 . . . . . Processor 4 | . 2 . 1 1 . . . . . Hackware . | . . . . . . . . . . Protection 3 | . . . 1 2 . . . . . Artifact . | . . . . . . . . . . Weapon 56 | . 13 10 21 8 . . . 1 3 Energy Gun 14 | . 5 2 7 . . . . . . Energy Cannon 2 | . 1 . 1 . . . . . . Ballistic Gun 8 | . 3 . 3 2 . . . . . Ballistic Cannon 6 | . 1 2 3 . . . . . . Launcher 12 | . 2 3 3 3 . . . . 1 Special Weapon 1 | . . . . . . . . 1 . Impact Weapon 8 | . 1 3 3 . . . . . 1 Slashing Weapon 5 | . . . 1 3 . . . . 1 Piercing Weapon . | . . . . . . . . . . Special Melee Weapon . | . . . . . . . . . . Unidentified Prototypes 3 | . . . 1 1 . . . 1 . Corrupted Parts 1 | . . . 1 . . . . . . System Corruption 1 | . . . 1 . . . . . . Parts Lost 7 | . 3 . 3 1 . . . . . Power 1 | . . . 1 . . . . . . Propulsion 3 | . 1 . 2 . . . . . . Utility 2 | . 1 . . 1 . . . . . Weapon 1 | . 1 . . . . . . . . Highest Loss Streak 3 | . 3 . 2 1 . . . . . To Critical Strikes . | . . . . . . . . . . Average Slot Usage (%) 91 | . 95 100 98 75 80 80 80 76 78 Engine 7 | . 13 14 3 . . . . . 4 Core 3 | . . . 5 5 6 6 6 6 6 Treads 21 | . 25 28 35 1 . . . . . Flight 4 | . . . . 11 20 20 20 20 23 Device 14 | . 1 14 23 18 20 20 20 20 16 Storage 11 | . 18 14 9 5 6 6 6 6 5 Processor 5 | . 6 . 2 12 13 13 13 13 11 Energy Gun 5 | . 14 . 4 . . . . . . Ballistic Gun 3 | . 7 . 4 1 . . . . . Ballistic Cannon 3 | . . 13 2 . . . . . . Launcher 4 | . 3 13 1 2 6 6 6 2 2 Slashing Weapon 1 | . . . 1 5 6 6 6 2 3 Naked Turns . | . . . . . . . . . . Heaviest Build 36 | 14 36 33 36 36 27 27 27 27 33 Greatest Support 102 | 20 40 40 82 102 36 36 36 36 42 Greatest Overweight (x) 1 | . 1 . . . . . . . . Average Overweight (x) . | . . . . . . . . . . Largest Inventory Capacity 15 | 8 15 15 15 15 10 10 10 10 10 Average Capacity 12 | 8 10 15 15 10 10 10 10 10 10 Most Carried 15 | 6 15 15 15 15 10 10 10 10 10 Average Carried 11 | 6 9 14 14 9 10 9 10 9 9 Final Capacity 15 | 8 15 15 15 10 10 10 10 10 10 Final Carried 15 | 6 15 15 15 10 10 10 10 10 8 Class Distribution -------------------- 62% | Mutant 21% | Scout 11% | Scavenger-Mutant 4% | Infiltrator-Ninja Dominant Class ---------------- Mutant | -10/Materials Mutant | -10/Subcaves Mutant | -8/Materials Scout | -7/Factory Scout | -7/Lower Caves Scout | -7/Lower Caves Scout | -7/Data Miner Scout | -6/Proximity Caves Scout | -6/Factory Resources | -11 -10 -10 -8 -7 -7 -7 -7 -6 -6 ----------- Run | Jun Mat Sub Mat Fac Low Low Dat Pro Fac Matter Collected 2167 | 210 252 309 825 438 55 21 . 36 21 Remotely 22 | . . . 22 . . . . . . Salvage Created 2831 | 160 759 151 1253 242 145 . . . 121 Parts 162 | 7 54 13 65 14 3 . . . 6 Haulers Intercepted 5 | . 2 . 3 . . . . . . Recyclers Shooed 5 | . 2 . 1 2 . . . . . Parts Field Recycled . | . . . . . . . . . . Retrieved Matter . | . . . . . . . . . . Parts Self-Destructed 5 | . . 5 . . . . . . . Prevented . | . . . . . . . . . . Kills | -11 -10 -10 -8 -7 -7 -7 -7 -6 -6 ------- Run | Jun Mat Sub Mat Fac Low Low Dat Pro Fac Combat Hostiles Destroyed 46 | . 10 8 20 4 4 . . . . Guns 15 | . 9 . 5 1 . . . . . Cannons 7 | . . 1 6 . . . . . . AOE 23 | . . 7 9 3 4 . . . . Classes Destroyed 16 | 2 7 2 3 1 1 . . . . Worker 9 | . 2 . 5 2 . . . . . Builder 5 | . 4 . 1 . . . . . . Tunneler 4 | 3 . . 1 . . . . . . Hauler 5 | . 2 . 3 . . . . . . Recycler 9 | 1 . . 4 3 . . . . 1 Mechanic 1 | . 1 . . . . . . . . Operator 2 | . 1 . 1 . . . . . . Watcher 8 | . 3 . 3 1 . . . . 1 Swarmer 11 | . . 4 4 3 . . . . . Grunt 18 | . 10 . 8 . . . . . . Brawler 1 | . . . 1 . . . . . . Sentry 5 | . . . 5 . . . . . . Hunter 2 | . . . 2 . . . . . . Programmer 1 | . . . . 1 . . . . . Subdweller 4 | . . 4 . . . . . . . Thug 1 | . . . . . 1 . . . . Fireman 3 | . . . . . 3 . . . . Best Kill Streak 15 | 1 4 4 15 3 4 . . . 2 Combat Bots Only 9 | . 4 4 9 2 4 . . . . Max Kills in Single Turn 3 | 1 1 2 3 2 1 . . . 1 Gunslinging . | . . . . . . . . . . Exploded 2 | . . 2 2 2 1 . . . . Melee . | . . . . . . . . . . Uniques/NPCs Destroyed . | . . . . . . . . . . Combat | -11 -10 -10 -8 -7 -7 -7 -7 -6 -6 -------- Run | Jun Mat Sub Mat Fac Low Low Dat Pro Fac Damage Taken 2673 | 4 822 91 1183 378 22 115 . . 58 Core 346 | . 167 . 44 129 . . . . 6 Absorbed by Shields . | . . . . . . . . . . Redirected to Shielding 107 | . . . . 107 . . . . . Regen/Repaired (Parts) 341 | . 92 . 127 122 . . . . . Core Remaining (%) 76 | 100 . 33 92 . . . . 81 . Volleys Fired 284 | 19 115 12 109 21 5 2 . 1 . Largest 2 | 2 2 1 1 1 1 1 . 1 . Hottest 80 | 80 60 35 61 36 36 36 . . . Shots Fired 346 | 30 165 13 109 21 5 2 . 1 . Gun 269 | 30 165 . 65 9 . . . . . Cannon 34 | . . 1 33 . . . . . . Launcher 42 | . . 12 11 12 5 2 . . . Special 1 | . . . . . . . . 1 . Kinetic 131 | . 71 1 50 9 . . . . . Thermal 102 | 12 68 . 22 . . . . . . Explosive 42 | . . 12 11 12 5 2 . . . Electromagnetic 70 | 18 26 . 26 . . . . . . Robot Hit Streak 13 | 10 13 9 12 5 . . . . . Robot Miss Streak 6 | 3 6 . 3 2 . . . . . Penetration Max . | . . . . . . . . . . Secondary Targets 2 | . 2 . . . . . . . . Max Gunslinging Chain 1 | . 1 . . . . . . . . Shots Hit Robots 219 | 22 109 3 74 9 . . . . 2 Core Hits 155 | 4 43 12 73 13 9 . . . 1 Critical Kills . | . . . . . . . . . . Critical Parts Destroyed 1 | . 1 . . . . . . . . Critical Strikes 6 | . 2 . 4 . . . . . . Burn 3 | . 1 . 2 . . . . . . Destroy 1 | . 1 . . . . . . . . Blast 2 | . . . 2 . . . . . . Melee Attacks 62 | . 4 4 2 33 1 . . 1 17 Impact 13 | . 4 4 . . . . . . 5 Slashing 49 | . . . 2 33 1 . . 1 12 Piercing . | . . . . . . . . . . Sneak Attacks 4 | . . . . 3 . . . . 1 Combat Hostiles . | . . . . . . . . . . Follow-up Attacks . | . . . . . . . . . . Damage Inflicted 6032 | 344 1221 479 2493 845 457 . . . 193 Guns 2404 | 277 1174 . 863 90 . . . . . Cannons 396 | . . 18 378 . . . . . . Explosions 2856 | 67 47 461 1252 572 457 . . . . Melee 376 | . . . . 183 . . . . 193 Ramming . | . . . . . . . . . . Kinetic 1033 | . 383 18 542 90 . . . . . Thermal 1236 | 144 641 . 451 . . . . . . Explosive 2561 | . . 461 1071 572 457 . . . . Electromagnetic 826 | 200 197 . 429 . . . . . . Impact 193 | . . . . . . . . . 193 Slashing 183 | . . . . 183 . . . . . Piercing . | . . . . . . . . . . Highest Corruption 2 | . 2 2 1 . . . . . . Average Corruption 1 | . 1 2 1 . . . . . . Corruption Purged . | . . . . . . . . . . Corruption Blocked . | . . . . . . . . . . Effects 27 | . 6 10 11 . . . . . . Message Errors 5 | . 1 3 1 . . . . . . Matter Fused 4 | . 2 2 . . . . . . . Heat Flow Errors 2 | . . . 2 . . . . . . Energy Discharges 7 | . 2 3 2 . . . . . . Data Loss (minor) 5 | . . . 5 . . . . . . Data Loss (major) 2 | . . 1 1 . . . . . . Misfires 1 | . . 1 . . . . . . . Alerts 1 | . 1 . . . . . . . . Overload Shots . | . . . . . . . . . . Overflow Damage 140 | 4 . . 17 33 3 . . . 83 Projectiles . | . . . . . . . . . . Explosions 29 | 4 . . 17 5 3 . . . . Melee 111 | . . . . 28 . . . . 83 Knockbacks . | . . . . . . . . . . Impact . | . . . . . . . . . . Kinetic . | . . . . . . . . . . Secondary . | . . . . . . . . . . Self-Inflicted Damage 194 | 4 . 16 104 70 . . . . . Shots 7 | 1 . 1 3 2 . . . . . Rammed . | . . . . . . . . . . Targets Rammed . | . . . . . . . . . . Kicked . | . . . . . . . . . . Crushed . | . . . . . . . . . . Highest Temperature 217 | 54 210 . 217 5 17 9 . . 192 Average Temperature 53 | 27 53 . 68 3 11 6 . . 91 Received Heat Transfer 933 | . 465 30 396 12 9 . . . 21 Siege Activations . | . . . . . . . . . . Robots Corrupted 1 | . 1 . . . . . . . . Combat Hostiles 1 | . 1 . . . . . . . . Parts Fried 3 | . . . 3 . . . . . . Impact Corruptions 1 | . . . . . . . . . 1 Robots Melted . | . . . . . . . . . . Combat Hostiles . | . . . . . . . . . . Parts Melted 7 | 1 4 . 2 . . . . . . Heat Transferred 2719 | 275 1504 . 940 . . . . . . Parts Sabotaged . | . . . . . . . . . . Parts Stolen . | . . . . . . . . . . Parts Stripped . | . . . . . . . . . . Power Chain Reactions 6 | 2 1 . 3 . . . . . . Missiles Intercepted . | . . . . . . . . . . Alert | -11 -10 -10 -8 -7 -7 -7 -7 -6 -6 ------- Run | Jun Mat Sub Mat Fac Low Low Dat Pro Fac Peak Influence 526 | 20 141 . 526 343 . . . . 129 Initial 205 | . 13 . 205 191 . . . . . Average 204 | 12 49 . 414 224 . . . . 24 Maximum Alert Level 2 | . . . 2 1 . . . . . Low Security (%) 53 | 100 100 . . 33 . . . . 100 Level 1 20 | . . . 26 66 . . . . . Level 2 26 | . . . 73 . . . . . . Level 3 . | . . . . . . . . . . Level 4 . | . . . . . . . . . . Level 5 . | . . . . . . . . . . High Security . | . . . . . . . . . . Max Security . | . . . . . . . . . . Squads Dispatched 7 | . 3 . 1 3 . . . . . Investigation 2 | . 2 . . . . . . . . Extermination 3 | . . . . 3 . . . . . Reinforcement 1 | . 1 . . . . . . . . Assault 1 | . . . 1 . . . . . . Garrison . | . . . . . . . . . . Intercept . | . . . . . . . . . . Searches Triggered . | . . . . . . . . . . Construction Impeded . | . . . . . . . . . . Haulers Reinforced . | . . . . . . . . . . Active Scanning Responses . | . . . . . . . . . . Cargo Convoy Interrupts . | . . . . . . . . . . Stealth | -11 -10 -10 -8 -7 -7 -7 -7 -6 -6 --------- Run | Jun Mat Sub Mat Fac Low Low Dat Pro Fac Distress Signals 2 | . . . 2 . . . . . . Communications Jammed . | . . . . . . . . . . Distress Signals . | . . . . . . . . . . Times Spotted 101 | . 21 23 30 14 4 2 . . 7 Peak Tracking Total 8 | . 4 5 8 4 4 2 . . 7 Tactical Retreats 7 | . . 1 1 4 . . . . 1 Traps | -11 -10 -10 -8 -7 -7 -7 -7 -6 -6 ------- Run | Jun Mat Sub Mat Fac Low Low Dat Pro Fac Traps Triggered 9 | . 7 . . 1 . . . . 1 Indirectly . | . . . . . . . . . . Trap Hack Attempts . | . . . . . . . . . . Triggered . | . . . . . . . . . . Disarmed . | . . . . . . . . . . Reprogrammed . | . . . . . . . . . . Reused . | . . . . . . . . . . Traps Extracted . | . . . . . . . . . . Installed . | . . . . . . . . . . Triggered . | . . . . . . . . . . Machines | -11 -10 -10 -8 -7 -7 -7 -7 -6 -6 ---------- Run | Jun Mat Sub Mat Fac Low Low Dat Pro Fac Machines Disabled 5 | . 1 3 1 . . . . . . Max in Single Turn 2 | . 1 2 1 . . . . . . Machines Repaired . | . . . . . . . . . . Machines Sabotaged . | . . . . . . . . . . Overloaded Fab Kills . | . . . . . . . . . . Hacking | -11 -10 -10 -8 -7 -7 -7 -7 -6 -6 --------- Run | Jun Mat Sub Mat Fac Low Low Dat Pro Fac Machines Accessed 40 | . 8 1 12 9 . . 4 . 6 Terminals 24 | . 6 . 9 5 . . . . 4 Fabricators . | . . . . . . . . . . Repair Stations 5 | . 1 . 1 2 . . . . 1 Recycling Units 4 | . 1 . 1 1 . . . . 1 Scanalyzers 1 | . . . 1 . . . . . . Garrison Access 1 | . . . . 1 . . . . . Total Hacks 119 | . 22 9 26 23 . . 29 . 10 Successful 71 | . 12 9 10 10 . . 29 . 1 Failed 47 | . 9 . 16 13 . . . . 9 Catastrophic 9 | . . . 4 2 . . . . 3 Database Lockouts 1 | . 1 . . . . . . . . Manual 43 | . 18 . 10 7 . . . 1 7 Terminals 52 | . 14 . 21 10 . . . . 7 Fabricators . | . . . . . . . . . . Repair Stations 19 | . 6 . 2 9 . . . . 2 Recycling Units 7 | . 2 . 2 2 . . . . 1 Scanalyzers 1 | . . . 1 . . . . . . Garrison Access 2 | . . . . 2 . . . . . Terminal Hacks 52 | . 5 9 6 3 . . 29 . . Record 20 | . . 8 1 . . . 11 . . Part Schematic 11 | . . . . . . . 11 . . Robot Schematic 4 | . . . . . . . 4 . . Robot Analysis 6 | . 5 . 1 . . . . . . Prototype ID Bank 4 | . . . 1 . . . 3 . . Branch Access Points 2 | . . . 1 1 . . . . . Locate Traps 1 | . . . . 1 . . . . . Zone Layout 3 | . . . 2 1 . . . . . Derelict Proto ID Bank 1 | . . 1 . . . . . . . Fabricator Hacks . | . . . . . . . . . . Repair Station Hacks 14 | . 6 . 2 5 . . . . 1 Scan Component 8 | . 3 . 1 3 . . . . 1 Repair 6 | . 3 . 1 2 . . . . . Recycling Unit Hacks 3 | . 1 . 1 1 . . . . . Retrieve Components 3 | . 1 . 1 1 . . . . . Scanalyzer . | . . . . . . . . . . Garrison Access Hacks . | . . . . . . . . . . Unauthorized Hacks 2 | . . . 1 1 . . . . . Terminals 1 | . . . . 1 . . . . . Botnet 1 | . . . . 1 . . . . . Fabricators . | . . . . . . . . . . Repair Stations . | . . . . . . . . . . Recycling Units . | . . . . . . . . . . Scanalyzers 1 | . . . 1 . . . . . . Researchers 1 | . . . 1 . . . . . . Garrison Access . | . . . . . . . . . . Data Cores Recovered 1 | . . . 1 . . . . . . Used . | . . . . . . . . . . Hacking Detections 31 | . 8 . 9 8 . . . . 6 Full Trace Events 2 | . 2 . . . . . . . . Feedback Events . | . . . . . . . . . . Feedback Blocked . | . . . . . . . . . . Robot Schematics Acquired 4 | . . . . . . . 4 . . Robots Built . | . . . . . . . . . . Authchips . | . . . . . . . . . . Time . | . . . . . . . . . . Total Robot Build Rating . | . . . . . . . . . . Part Schematics Acquired 11 | . . . . . . . 11 . . Parts Built . | . . . . . . . . . . Authchips . | . . . . . . . . . . Time . | . . . . . . . . . . Total Part Build Rating . | . . . . . . . . . . Parts Repaired 6 | . 3 . 1 2 . . . . . Time 168 | . 90 . 26 52 . . . . . Parts Recycled . | . . . . . . . . . . Recycled Matter . | . . . . . . . . . . Retrieved Matter . | . . . . . . . . . . Retrieved Components 21 | . 9 . 9 3 . . . . . Parts Scanalyzed . | . . . . . . . . . . Part Schematics Acquired . | . . . . . . . . . . Parts Damaged . | . . . . . . . . . . Bothacking | -11 -10 -10 -8 -7 -7 -7 -7 -6 -6 ------------ Run | Jun Mat Sub Mat Fac Low Low Dat Pro Fac Used RIF Installer . | . . . . . . . . . . Robots Hacked . | . . . . . . . . . . Non-combat . | . . . . . . . . . . Combat . | . . . . . . . . . . Robot Hacks Applied . | . . . . . . . . . . Relay Couplers Released . | . . . . . . . . . . Fabnet Peak Effective % . | . . . . . . . . . . Robots Rewired . | . . . . . . . . . . Allies Hacked . | . . . . . . . . . . Hacks Repelled . | . . . . . . . . . . Allies | -11 -10 -10 -8 -7 -7 -7 -7 -6 -6 -------- Run | Jun Mat Sub Mat Fac Low Low Dat Pro Fac Total Allies . | . . . . . . . . . . Largest Group . | . . . . . . . . . . Highest-Rated Group . | . . . . . . . . . . Highest-Rated Ally . | . . . . . . . . . . Total Orders . | . . . . . . . . . . Ally Attacks . | . . . . . . . . . . Total Damage . | . . . . . . . . . . Kills . | . . . . . . . . . . Allies Corrupted . | . . . . . . . . . . Allies Melted . | . . . . . . . . . . Intel | -11 -10 -10 -8 -7 -7 -7 -7 -6 -6 ------- Run | Jun Mat Sub Mat Fac Low Low Dat Pro Fac Robot Analysis Total 6 | . 5 . 1 . . . . . . Derelict Logs Recovered 3 | . . . . . 2 . . 1 . Drone Launches . | . . . . . . . . . . Drone Recoveries . | . . . . . . . . . . Exploration | -11 -10 -10 -8 -7 -7 -7 -7 -6 -6 ------------- Run | Jun Mat Sub Mat Fac Low Low Dat Pro Fac Turns Passed 6393 | 139 1849 1027 1630 763 179 233 44 291 238 Spaces Moved 5475 | 53 832 596 711 1314 357 474 91 538 509 Core 2 | . 2 . . . . . . . . Treads 2085 | . 762 596 711 16 . . . . . Legs 121 | 53 68 . . . . . . . . Wheels . | . . . . . . . . . . Hover . | . . . . . . . . . . Flight 3267 | . . . . 1298 357 474 91 538 509 Fastest Speed 31 | 120 100 160 156 34 34 34 34 34 31 Average Speed 84 | 120 157 160 158 38 34 34 34 34 31 Slowest Speed 190 | 120 190 160 160 157 34 34 34 34 31 Overloaded Moves . | . . . . . . . . . . Propulsion Burnouts . | . . . . . . . . . . Robots Hopped 6 | . . . . 3 . . . 1 2 Cave-ins Triggered . | . . . . . . . . . . Exploration Rate (%) 53 | 3 95 38 64 43 57 64 73 79 18 Regions Visited 9 Branch Regions 5 Pre-discovered Areas 1 | . . . . . . . 1 . . Known Exits Taken 6 | . . . 1 1 1 1 1 1 . Unknown Exits Taken 3 | 1 1 1 . . . . . . . Scrap Searched 7 | . . 2 . . 2 1 . 2 . Spaces Dug 60 | . 4 . 2 37 1 . . 1 15 Terrain Destroyed 280 | 4 7 62 55 87 26 23 . 1 15 Melee 53 | . 4 . 2 30 1 . . 1 15 Projectile . | . . . . . . . . . . AOE 227 | 4 3 62 53 57 25 23 . . . Terrain Rammed . | . . . . . . . . . . Walls Destroyed . | . . . . . . . . . . Machines Disabled . | . . . . . . . . . . Actions | -11 -10 -10 -8 -7 -7 -7 -7 -6 -6 --------- Run | Jun Mat Sub Mat Fac Low Low Dat Pro Fac Total 6807 | 98 1205 648 1100 1499 407 544 103 642 561 Wait 710 | 26 191 16 188 60 45 65 13 95 11 Move 5454 | 52 831 595 710 1307 356 473 90 535 505 Hop 6 | . . . . 3 . . . 1 2 Pick Up 67 | . 17 4 19 19 . 2 . 3 3 Fast Attach 36 | 1 15 . 10 8 . . . 1 1 Attach 29 | . 4 . 8 10 . . . . 7 Detach 5 | . 1 . . 3 . . . . 1 Swap 63 | . 14 10 27 11 . . . . 1 Drop 83 | . 13 7 27 24 . 2 . 5 5 Fire 284 | 19 115 12 109 21 5 2 . 1 . Melee 62 | . 4 4 2 33 1 . . 1 17 Ram . | . . . . . . . . . . Kick . | . . . . . . . . . . Crush . | . . . . . . . . . . Escape Stasis 8 | . . . . . . . . . 8 Rewire . | . . . . . . . . . . Trap . | . . . . . . . . . . Miscellaneous . | . . . . . . . . . . Route ------- -11/Junkyard -10/Materials (discovered 5 exits: [*Mat x3] / [*Min] / *Sub) -10/Subcaves (discovered 2 exits: *Mat / [*Rec]) -8/Materials (discovered 2 exits: *Fac x2) -7/Factory (discovered 3 exits: Sto / *Low x2) -7/Lower Caves -7/Lower Caves -7/Data Miner -6/Proximity Caves -6/Factory History --------- Turn | Location | Event 4 | -11/Junkyard | Discovered new exit (range 2) 140 | -11/Junkyard | Entered Materials 307 | -10/Materials | Build established: Mutant 313 | -10/Materials | Lost 3 parts (1n1u1w) 617 | -10/Materials | Discovered new exit (range 16) 670 | -10/Materials | Core integrity fell below 50% 891 | -10/Materials | Discovered new exit (range 7) 1274 | -10/Materials | Discovered new exit (range 4) 1368 | -10/Materials | Repaired Lgt. Treads 1395 | -10/Materials | Repaired Lgt. Treads 1434 | -10/Materials | Repaired Lgt. Nuclear Core 1543 | -10/Materials | Discovered new exit (range 5) 1574 | -10/Materials | Discovered new exit (range 12) 1790 | -10/Materials | Central database locked down 1989 | -10/Materials | Entered Subcaves 2360 | -10/Subcaves | Visited 4L-MR0's lab 2386 | -10/Subcaves | Found Flightbrick 2776 | -10/Subcaves | Discovered new exit (range 15) 2805 | -10/Subcaves | Shifting Twisted Machinery released Piercing Trap 2901 | -10/Subcaves | Discovered new exit (range 15) 3016 | -10/Subcaves | Entered Materials 3016 | -8/Materials | Evolved 4 slots: Propulsion x2, Utility x2 3441 | -8/Materials | Destroyed 9 combat bots 4115 | -8/Materials | Repaired Lgt. Treads 4204 | -8/Materials | Discovered new exit (range 7) 4412 | -8/Materials | Build established: Scavenger-Mutant 4616 | -8/Materials | First assault squad dispatched 4620 | -8/Materials | Discovered new exit (range 7) 4644 | -8/Materials | Identified exit to Factory 4646 | -8/Materials | Entered Factory 4646 | -7/Factory | Evolved 2 slots: Propulsion x2 4683 | -7/Factory | Attached Flightbrick, gained temporary slots: Utility x3 4692 | -7/Factory | Repaired Sensor Array 4735 | -7/Factory | Repaired Med. Storage Unit 4950 | -7/Factory | Discovered new exit (range 11) 5096 | -7/Factory | Identified exit to Storage 5096 | -7/Factory | Identified exit to Lower Caves 5409 | -7/Factory | Entered Lower Caves 5504 | -7/Lower Caves | Ambushed by wild Derelicts 5529 | -7/Lower Caves | Spotted B-75 Beast 5540 | -7/Lower Caves | Build established: Scout 5574 | -7/Lower Caves | Learned Factory garrison access intel 5584 | -7/Lower Caves | Discovered new exit (range 7) 5584 | -7/Lower Caves | Learned Factory terminal intel 5586 | -7/Lower Caves | Identified exit to Lower Caves 5588 | -7/Lower Caves | Entered another Lower Caves area 5599 | -7/Lower Caves | Encountered a Warlord checkpoint 5738 | -7/Lower Caves | Spotted B-75 Beast 5818 | -7/Lower Caves | Discovered new exit (range 12) 5821 | -7/Lower Caves | Identified exit to Data Miner 5821 | -7/Lower Caves | Entered Data Miner 5821 | -7/Data Miner | Discovered new exit (range 6) 5828 | -7/Data Miner | Met Data Miner 5839 | -7/Data Miner | Learned location of Section 7 (-2) 5839 | -7/Data Miner | Acquired the access code to Warlord's prototype stash 5842 | -7/Data Miner | Received God Mode back door access code from Data Miner 5865 | -7/Data Miner | Identified exit to Proximity Caves 5865 | -7/Data Miner | Entered Proximity Caves 5872 | -6/Proximity Caves | Learned Factory terminal intel 5999 | -6/Proximity Caves | Acquired the password to a Derelict Tinkerer's latest research 6001 | -6/Proximity Caves | Found Prototype Special Weapon 6001 | -6/Proximity Caves | Identified Molecular Deconstructor 6151 | -6/Proximity Caves | Discovered new exit (range 14) 6155 | -6/Proximity Caves | Identified exit to Factory 6156 | -6/Proximity Caves | Entered Factory 6156 | -6/Factory | Evolved 2 slots: Power x1, Propulsion x1 6157 | -6/Factory | Loaded intel: 26 terminal locations 6158 | -6/Factory | Loaded intel: 4 garrison access locations 6394 | -6/Factory | Self-destructed Last Messages --------------- 06310_ Stasis field depleted. 06311_ Dropped Katana. 06313_ Acquired Power Maul. 06316_ Acquired Stasis Canceller. 06340_ U-05 Engineer builds a Wall. 06365_ ALERT: All DSF locations entering lockdown mode. 06365_ K-01 Serf collects debris. 06376_ Connecting with Terminal... 06384_ W-25 Informer destroyed. 06384_ R-10 Processor collects Imp. Hover Unit. 06387_ Acquired 21 matter. 06387_ Dropped Sensor Array. 06387_ R-10 Processor collects Visual Processing Unit. 06388_ Temporary Utility slot lost. 06388_ Dropped Structural Scanner. 06389_ Sneak attack on R-10 Processor. 06389_ Destroyed Com. Wheel. 06389_ R-10 Processor system corrupted by crushing effect. 06389_ R-10 Processor destroyed. 06392_ Dropped Imp. Cooling System. Map ----- +----------------------------------------------------+ | ?????????????????????????????????????????????????? | | ?????????????????????????????????????????????????? | | ?????????????????????????????????????????????????? | | ?????????????????????????????????????????????????? | | ?????????????????????????????????????????????????? | | ?????????????????????????????????????????????????? | | ?????????????????????????????????????????????????? | | ?????????????????????????????????????????????????? | | ?????????????????????????????????????????????????? | | ?????????????????????????????????????????????????? | | ?????????????????????????????????????????????????? | | ?????????????????????????????????????????????????? | | ?????????????????????????????????????????????????? | | ?????????????????????????????????????????????????? | | ?????????????????????#####???????????????????????? | | ???????????? ###############???????????????????? | | ????????????###########T #####???????????????????? | | ???????????? ???????????????????? | | ????????????? ##??????? ???? | | ????????????? #############+####???? | | ???????????? ########### ### ?? | | ????????????? A T" !### ?? | | ???????????????????##### "" + ?? | | ??????????????????? ### ### ?? | | ??????????????????????##=!! ########### ### ?? | | ??????????????????????##=@! #### ### ####???? | | ??????????????????????##%!! ##??????? ### ####???? | | ??????????????????????## * ##?????????## ##?????? | | ??????????????????????## ##?????????## ##?????? | | ??????????????????????## ##????????### ###????? | | ??????????????????????## #### ### ###### ? | | ??????????????????????## ########+### ##### | | ??????????????????????## T | | ??????????????????????## ####### ### ####### | | ??????????????????????## ####### ############# | | ??????????????????????## ##???## ############# | | ?????????????????????? ####### ###?????## | | ??????????????????????######+#######+########## | | ??????????????????????#### ######### | | ????????????????????????## """" """" " ## " | | ????????????????????????## ??""" """" # ## " | | ?????????????????????????????""" """" # ## " | | ?????????????????????????????""" """" # ## " | | ?????????????????????????????? # ## " | | ??????????????????????????????"? """" # ## " | | ???????????????????????????????" """" # ## " | | ?????????????????????????????????"""" # ## " | | ????????????????????????????????????" # ## " | | ???????????????????????????????????? # ## | | ?????????????????????????? # ## | +----------------------------------------------------+ Best States ------------- Heat Dissipation 64 Energy Generation 25 Energy Capacity 265 Matter Stores 300 Matter Capacity 300 Sight Range 16 Robot Scan Range 14 Terrain Scan Density 10 ECM Strength 1 Propulsion Shielding 66 Evasion (%) 63 Targeting Accuracy 6 Recoil Reduction 5 Item Schematics ----------------- Combat Drone Bay | -7/Data Miner | Free Lgt. Regenerative Plating | -7/Data Miner | Free Cld. Cesium-ion Thruster | -7/Data Miner | Free Exp. Propulsion Shielding | -7/Data Miner | Free Imp. Lightning Gun | -7/Data Miner | Free Arm. Medium Treads | -7/Data Miner | Free Imp. Dynamic Insulation System | -7/Data Miner | Free Imp. Remote Datajack | -7/Data Miner | Free Imp. Transmission Jammer | -7/Data Miner | Free Imp. Kinecellerator | -7/Data Miner | Free Centrium Wheel | -7/Data Miner | Free Robot Schematics ------------------ A-15 Conveyor | -7/Data Miner | Free H-66 Slayer | -7/Data Miner | Free L-41 Fighter | -7/Data Miner | Free B-60 Warrior | -7/Data Miner | Free Fabricated ------------ Nothing Alien Tech Used ----------------- None Achievements -------------- None Challenges ------------ None Game ------ Seed GammaLinkedNetwork Manual? 0 Play Time 02:49:36 Cumulative 71.7 hours Start 2023.08.15 @ 09:59:52 End 2023.08.15 @ 15:07:20 Sessions 1 Manual Loads 0 Difficulty Rogue Special Mode None Game No. 37 Rogue 37 Adventurer 0 Explorer 0 Win Type - Total 0 Types 0/0/0/0/0/0/0/0/0 Lore% 35 Gallery% 35 Achievement% 35 Wizard Run 0 Options --------- ASCII 0 Keyboard 0 Movement Mouse Keybinds 0 Fullscreen 1 Font 16/SmallcapsGlow Map View 82x54 Tactical HUD 1 Map Filters NONE Filters NONE Steam 1 RUN: f5c883f8-5402-4a63-8b48-630504492d35